{"text_format":"3","workbook":"xlsx","n_sheets":26,"sheets":["Inizio","1","2","3","4","5","6","7","8","9","10","11","12","13","14","15","16","17","18","19","20","21","22","23","24","Altre informazioni"],"not_rendered":{"images":24,"defined_names":20,"pivot_tables":19},"read":"whole","date_system":"1900"}

{"sheet":"Inizio","index":0,"n_rows":5,"n_cols":1,"rows_kept":5}
["Benvenuto\nIstruzioni per le utilità per la lettura dello schermo: Sfruttare al meglio le tabelle pivot. Una semplice tabella pivot fornisce un riepilogo generale dei dati, ma a volte occorrono risposte più dettagliate a domande specifiche. In questi casi è utile aggiungere altri campi colonna e campi riga. \nLe istruzioni indicano le celle a cui passare per usare una funzionalità o suggeriscono letture di approfondimento.\nPer iniziare, premere CTRL+PGGIÙ."]
["Sfruttare al meglio le tabelle pivot"]
["Una semplice tabella pivot fornisce un riepilogo generale dei dati,\nma a volte occorrono risposte più dettagliate a domande specifiche.\nIn questi casi è utile aggiungere altri campi colonna e campi riga."]
["INFORMAZIONI UTILI\nÈ stata completata la prima esercitazione? In caso contrario, scegliere File > Nuovo e cercare Creare la prima tabella pivot."]
["Per tornare all'inizio, premere CTRL+HOME. Per iniziare il tour, premere CTRL+PGGIÙ."]

{"sheet":"1","index":1,"n_rows":16,"n_cols":9,"rows_kept":16}
["Nella prima esercitazione abbiamo introdotto il concetto di tabella pivot. Abbiamo anche spiegato come usare un campo riga come condizione che suddivide un campo valore.   "]
["Le celle da H10 a I14 contengono una tabella pivot che riepiloga i dati nelle celle da B8 a E16. Nella tabella pivot sono presenti due colonne: Acquirente e Somma di Importo. La colonna Acquirente contiene i valori Papà, Mamma, Michela e Totale complessivo. La colonna Somma di Importo contiene i valori € 220, € 270, € 810 e € 1.300. La colonna Acquirente è costituita da un campo riga e la colonna Somma di Importo è costituita da un campo valore."]
["Per continuare questa esercitazione, premere CTRL+PGGIÙ. Per passare al foglio precedente, premere CTRL+PGSU."]
[]
[]
[]
[]
[null,"Data","Acquirente","Tipo","Importo"]
["Questo esempio mostra come il campo riga...","2017-01-01","Papà","Regali",{"v":95,"d":"€ 95"}]
["...suddivide il campo valore.","2017-01-15","Mamma","Alimentari",{"v":325,"d":"€ 325"},null,null,"Acquirente","Somma di Importo"]
[null,"2017-01-17","Mamma","Biglietti",{"v":250,"d":"€ 250"},null,null,"Mamma",{"v":810,"d":"€ 810"}]
[null,"2017-01-21","Papà","Alimentari",{"v":125,"d":"€ 125"},null,null,"Michela",{"v":270,"d":"€ 270"}]
[null,"2017-02-02","Mamma","Alimentari",{"v":235,"d":"€ 235"},null,null,"Papà",{"v":220,"d":"€ 220"}]
[null,"2017-02-20","Michela","Musica",{"v":20,"d":"€ 20"},null,null,"Totale complessivo",{"v":1300,"d":"€ 1,300"}]
[null,"2017-02-25","Michela","Biglietti",{"v":125,"d":"€ 125"}]
[null,"2017-02-25","Michela","Sport",{"v":125,"d":"€ 125"}]

{"sheet":"2","index":2,"n_rows":108,"n_cols":7,"rows_kept":108}
["Osservando una tabella pivot, ci si può rendere conto di avere bisogno di altre risposte."]
["Quando si guarda una tabella pivot per la prima volta, possono sorgere domande come \"Quando sono stati effettuati questi acquisti?\", \"Cosa ha acquistato ogni persona?\", \"Cosa ha comprato di così costoso la mamma?\"."]
["In questo esempio le celle da F11 a G15 mostrano la stessa tabella pivot a due colonne di prima. La colonna Acquirente è un campo riga che contiene i valori Papà, Mamma, Michela e Totale complessivo. La colonna Somma di Importo si trova nel campo valore e contiene i valori € 220, € 270, € 810 e € 1.300. "]
["Per continuare questa esercitazione, premere CTRL+PGGIÙ. Per passare al foglio precedente, premere CTRL+PGSU."]
[]
[]
[]
[]
[]
[]
[{"$nulls":5},"Acquirente","Somma di Importo"]
[{"$nulls":5},"Papà",{"v":220,"d":"€ 220"}]
[{"$nulls":5},"Michela",{"v":270,"d":"€ 270"}]
[{"$nulls":5},"Mamma",{"v":810,"d":"€ 810"}]
[{"$nulls":5},"Totale complessivo",{"v":1300,"d":"€ 1,300"}]
{"$rows_empty":84}
[null,"Data","Acquirente","Tipo","Importo"]
[null,"2017-01-01","Papà","Regali",{"v":95,"d":"€ 95"}]
[null,"2017-01-15","Mamma","Alimentari",{"v":325,"d":"€ 325"}]
[null,"2017-01-17","Mamma","Biglietti",{"v":250,"d":"€ 250"}]
[null,"2017-01-21","Papà","Alimentari",{"v":125,"d":"€ 125"}]
[null,"2017-02-02","Mamma","Alimentari",{"v":235,"d":"€ 235"}]
[null,"2017-02-20","Michela","Musica",{"v":20,"d":"€ 20"}]
[null,"2017-02-25","Michela","Biglietti",{"v":125,"d":"€ 125"}]
[null,"2017-02-25","Michela","Sport",{"v":125,"d":"€ 125"}]

{"sheet":"3","index":3,"n_rows":108,"n_cols":7,"rows_kept":108}
["Sono tutte domande valide, ma per il momento concentriamoci su una sola."]
["Cosa ha acquistato ogni persona?"]
["Per riferimento, le celle da F11 a G15 mostrano la stessa tabella pivot a due colonne di prima. La colonna Acquirente è un campo riga che contiene i valori Papà, Mamma, Michela e Totale complessivo. La colonna Somma di Importo si trova nel campo valore e contiene i valori € 220, € 270, € 810 e € 1.300. "]
["Per continuare questa esercitazione, premere CTRL+PGGIÙ. Per passare al foglio precedente, premere CTRL+PGSU."]
[]
[]
[]
[]
[]
[]
[{"$nulls":5},"Acquirente","Somma di Importo"]
[{"$nulls":5},"Papà",{"v":220,"d":"€ 220"}]
[{"$nulls":5},"Michela",{"v":270,"d":"€ 270"}]
[{"$nulls":5},"Mamma",{"v":810,"d":"€ 810"}]
[{"$nulls":5},"Totale complessivo",{"v":1300,"d":"€ 1,300"}]
{"$rows_empty":84}
[null,"Data","Acquirente","Tipo","Importo"]
[null,"2017-01-01","Papà","Regali",{"v":95,"d":"€ 95"}]
[null,"2017-01-15","Mamma","Alimentari",{"v":325,"d":"€ 325"}]
[null,"2017-01-17","Mamma","Biglietti",{"v":250,"d":"€ 250"}]
[null,"2017-01-21","Papà","Alimentari",{"v":125,"d":"€ 125"}]
[null,"2017-02-02","Mamma","Alimentari",{"v":235,"d":"€ 235"}]
[null,"2017-02-20","Michela","Musica",{"v":20,"d":"€ 20"}]
[null,"2017-02-25","Michela","Biglietti",{"v":125,"d":"€ 125"}]
[null,"2017-02-25","Michela","Sport",{"v":125,"d":"€ 125"}]

{"sheet":"4","index":4,"n_rows":108,"n_cols":9,"rows_kept":108}
["L'ultima domanda che ci siamo posti è stata: \"Cosa ha acquistato ogni persona?\"."]
["Abbiamo risposto a quella domanda aggiungendo un campo colonna per Tipo. Di conseguenza, la tabella pivot ora contiene cinque nuove colonne che mostrano il tipo di acquisto effettuato da ogni persona. "]
["La nuova tabella pivot ora si trova nelle celle da C10 a I15, con le colonne Acquirente, Alimentari, Musica, Sport, Biglietti, Regali e Totale complessivo. Acquirente e Totale complessivo sono le stesse di prima e tra di esse sono presenti le nuove colonne di dettagli."]
["Per continuare questa esercitazione, premere CTRL+PGGIÙ. Per passare al foglio precedente, premere CTRL+PGSU."]
[]
[]
[]
[]
[]
[null,null,"Somma di Importo","Tipo"]
[null,null,"Acquirente","Alimentari","Musica","Sport","Biglietti","Regali","Totale complessivo"]
[null,null,"Papà",{"v":125,"d":"€ 125"},{"$nulls":3},{"v":95,"d":"€ 95"},{"v":220,"d":"€ 220"}]
[null,null,"Michela",null,{"v":20,"d":"€ 20"},{"v":125,"d":"€ 125"},{"v":125,"d":"€ 125"},null,{"v":270,"d":"€ 270"}]
[null,null,"Mamma",{"v":560,"d":"€ 560"},null,null,{"v":250,"d":"€ 250"},null,{"v":810,"d":"€ 810"}]
[null,null,"Totale complessivo",{"v":685,"d":"€ 685"},{"v":20,"d":"€ 20"},{"v":125,"d":"€ 125"},{"v":375,"d":"€ 375"},{"v":95,"d":"€ 95"},{"v":1300,"d":"€ 1,300"}]
{"$rows_empty":84}
[null,"Data","Acquirente","Tipo","Importo"]
[null,"2017-01-01","Papà","Regali",{"v":95,"d":"€ 95"}]
[null,"2017-01-15","Mamma","Alimentari",{"v":325,"d":"€ 325"}]
[null,"2017-01-17","Mamma","Biglietti",{"v":250,"d":"€ 250"}]
[null,"2017-01-21","Papà","Alimentari",{"v":125,"d":"€ 125"}]
[null,"2017-02-02","Mamma","Alimentari",{"v":235,"d":"€ 235"}]
[null,"2017-02-20","Michela","Musica",{"v":20,"d":"€ 20"}]
[null,"2017-02-25","Michela","Biglietti",{"v":125,"d":"€ 125"}]
[null,"2017-02-25","Michela","Sport",{"v":125,"d":"€ 125"}]

{"sheet":"5","index":5,"n_rows":108,"n_cols":9,"rows_kept":108}
["Se la tabella pivot è difficile da comprendere, ecco un suggerimento: leggere da sinistra, quindi dall'alto e poi in basso. Nell'esempio seguente Papà è nella cella C12, Alimentari per € 125 nella cella D12, Regali per € 95 nella cella E12 e il Totale complessivo di € 220 nella cella I12. Le righe 13 e 14 mostrano i dettagli relativi a Michela e Mamma e la riga 15 mostra il totale complessivo."]
["Per continuare questa esercitazione, premere CTRL+PGGIÙ. Per passare al foglio precedente, premere CTRL+PGSU."]
{"$rows_empty":7}
[null,null,"Somma di Importo","Tipo"]
[null,null,"Acquirente","Alimentari","Regali","Musica","Sport","Biglietti","Totale complessivo"]
[null,null,"Papà",{"v":125,"d":"€ 125"},{"v":95,"d":"€ 95"},{"$nulls":3},{"v":220,"d":"€ 220"}]
[null,null,"Michela",null,null,{"v":20,"d":"€ 20"},{"v":125,"d":"€ 125"},{"v":125,"d":"€ 125"},{"v":270,"d":"€ 270"}]
[null,null,"Mamma",{"v":560,"d":"€ 560"},{"$nulls":3},{"v":250,"d":"€ 250"},{"v":810,"d":"€ 810"}]
[null,null,"Totale complessivo",{"v":685,"d":"€ 685"},{"v":95,"d":"€ 95"},{"v":20,"d":"€ 20"},{"v":125,"d":"€ 125"},{"v":375,"d":"€ 375"},{"v":1300,"d":"€ 1,300"}]
{"$rows_empty":84}
[null,"Data","Acquirente","Tipo","Importo"]
[null,"2017-01-01","Papà","Regali",{"v":95,"d":"€ 95"}]
[null,"2017-01-15","Mamma","Alimentari",{"v":325,"d":"€ 325"}]
[null,"2017-01-17","Mamma","Biglietti",{"v":250,"d":"€ 250"}]
[null,"2017-01-21","Papà","Alimentari",{"v":125,"d":"€ 125"}]
[null,"2017-02-02","Mamma","Alimentari",{"v":235,"d":"€ 235"}]
[null,"2017-02-20","Michela","Musica",{"v":20,"d":"€ 20"}]
[null,"2017-02-25","Michela","Biglietti",{"v":125,"d":"€ 125"}]
[null,"2017-02-25","Michela","Sport",{"v":125,"d":"€ 125"}]

{"sheet":"6","index":6,"n_rows":3,"n_cols":1,"rows_kept":3}
["Non eseguire ora questa operazione ma tra qualche passaggio, quando si lavorerà su una tabella pivot. Prima di tutto si creeranno i dettagli nel campo Colonne. A questo scopo, si posizionerà il campo Tipo nell'area del campo Colonne."]
["Immagine dell'elenco Campi tabella pivot con un cursore a freccia che trascina il campo Tipo nell'area Colonne."]
["Per continuare questa esercitazione, premere CTRL+PGGIÙ. Per passare al foglio precedente, premere CTRL+PGSU."]

{"sheet":"7","index":7,"n_rows":108,"n_cols":8,"rows_kept":108}
["1. L'area della tabella pivot in questo esempio si trova nelle celle da B13 a C17. Passare a una di quelle celle."]
["2. Premere ALT+JN, L1 per aprire l'elenco Campi tabella pivot. Lo stato attivo passa al campo di testo Cerca: \"Cerca\""]
["3. Premere i tasti di direzione per selezionare il campo Tipo. Una volta selezionato, premere BARRA SPAZIATRICE per aggiungere il campo Tipo all'area Righe. "]
["4. Premere TAB per selezionare il campo Tipo. Premere INVIO, quindi premere i tasti di direzione per selezionare Sposta nelle etichette di colonna e premere INVIO per aggiungere il campo Tipo all'area Colonne. Premere ALT+JN+L1 per chiudere il riquadro Campi tabella pivot."]
["Per continuare questa esercitazione, premere CTRL+PGGIÙ. Per passare al foglio precedente, premere CTRL+PGSU."]
[]
[]
[]
[{"$nulls":7},{"$f":"IF(AND($B$14=\"Acquirente\",$H$17=810),\"Ottimo! È stato inserito il\",\" \")","v":" "}]
[{"$nulls":7},{"$f":"IF(AND($B$14=\"Acquirente\",$H$17=810),\"primo campo colonna. Fare\",\" \")","v":" "}]
[{"$nulls":7},{"$f":"IF(AND($B$14=\"Acquirente\",$H$17=810),\"clic su Successivo per continuare...\",\" \")","v":" "}]
[]
[null,"Acquirente","Somma di Importo"]
[null,"Papà",{"v":220,"d":"€ 220"}]
[null,"Michela",{"v":270,"d":"€ 270"}]
[null,"Mamma",{"v":810,"d":"€ 810"}]
[null,"Totale complessivo",{"v":1300,"d":"€ 1,300"}]
{"$rows_empty":82}
[null,"Data","Acquirente","Tipo","Importo"]
[null,"2017-01-01","Papà","Regali",{"v":95,"d":"€ 95"}]
[null,"2017-01-15","Mamma","Alimentari",{"v":325,"d":"€ 325"}]
[null,"2017-01-17","Mamma","Biglietti",{"v":250,"d":"€ 250"}]
[null,"2017-01-21","Papà","Alimentari",{"v":125,"d":"€ 125"}]
[null,"2017-02-02","Mamma","Alimentari",{"v":235,"d":"€ 235"}]
[null,"2017-02-20","Michela","Musica",{"v":20,"d":"€ 20"}]
[null,"2017-02-25","Michela","Biglietti",{"v":125,"d":"€ 125"}]
[null,"2017-02-25","Michela","Sport",{"v":125,"d":"€ 125"}]

{"sheet":"8","index":8,"n_rows":108,"n_cols":9,"rows_kept":108}
["Osserviamo la tabella appena creata, a cui ora abbiamo aggiunto alcuni colori specifici per distinguere i campi riga, colonna e valore."]
["Il campo riga va dalla cella C10 alla cella C13 ed è visualizzato in giallo."]
["Il campo colonna va dalla cella D9 alla cella H10 ed è visualizzato in arancione."]
["Il campo valore va dalla cella D11 alla cella H13 ed è visualizzato in blu."]
["Per continuare questa esercitazione, premere CTRL+PGGIÙ. Per passare al foglio precedente, premere CTRL+PGSU."]
[]
[]
[]
[null,null,"Somma di Importo","Tipo"]
[null,null,"Acquirente","Alimentari","Regali","Musica","Sport","Biglietti","Totale complessivo"]
[null,null,"Papà",{"v":125,"d":"€ 125"},{"v":95,"d":"€ 95"},{"$nulls":3},{"v":220,"d":"€ 220"}]
[null,null,"Michela",null,null,{"v":20,"d":"€ 20"},{"v":125,"d":"€ 125"},{"v":125,"d":"€ 125"},{"v":270,"d":"€ 270"}]
[null,null,"Mamma",{"v":560,"d":"€ 560"},{"$nulls":3},{"v":250,"d":"€ 250"},{"v":810,"d":"€ 810"}]
[null,null,"Totale complessivo",{"v":685,"d":"€ 685"},{"v":95,"d":"€ 95"},{"v":20,"d":"€ 20"},{"v":125,"d":"€ 125"},{"v":375,"d":"€ 375"},{"v":1300,"d":"€ 1,300"}]
{"$rows_empty":85}
[null,"Data","Acquirente","Tipo","Importo"]
[null,"2017-01-01","Papà","Regali",{"v":95,"d":"€ 95"}]
[null,"2017-01-15","Mamma","Alimentari",{"v":325,"d":"€ 325"}]
[null,"2017-01-17","Mamma","Biglietti",{"v":250,"d":"€ 250"}]
[null,"2017-01-21","Papà","Alimentari",{"v":125,"d":"€ 125"}]
[null,"2017-02-02","Mamma","Alimentari",{"v":235,"d":"€ 235"}]
[null,"2017-02-20","Michela","Musica",{"v":20,"d":"€ 20"}]
[null,"2017-02-25","Michela","Biglietti",{"v":125,"d":"€ 125"}]
[null,"2017-02-25","Michela","Sport",{"v":125,"d":"€ 125"}]

{"sheet":"9","index":9,"n_rows":3,"n_cols":1,"rows_kept":3}
["Ecco un altro modo per pensarlo: il campo riga si trova a sinistra e il campo colonna in alto. Ognuno di essi fornisce una condizione al campo valore, che li somma."]
["Immagine concettuale che mostra un'area rettangolare a 4 sezioni con il campo riga in basso a sinistra in giallo, il campo colonna in alto a destra in arancione e il campo valore in basso a destra in blu."]
["Per continuare questa esercitazione, premere CTRL+PGGIÙ. Per passare al foglio precedente, premere CTRL+PGSU."]

{"sheet":"10","index":10,"n_rows":3,"n_cols":1,"rows_kept":3}
["Pensarlo in questo modo quando si usa l'elenco dei campi. Il campo riga si trova a sinistra e il campo colonna in alto. Ognuno di essi fornisce una condizione al campo valore, che li somma."]
["Immagine concettuale che mostra Elenco campi tabella pivot con il campo riga in basso a sinistra in giallo, il campo colonna in alto a destra in arancione e il campo valore in basso a destra in blu."]
["Per continuare questa esercitazione, premere CTRL+PGGIÙ. Per passare al foglio precedente, premere CTRL+PGSU."]

{"sheet":"11","index":11,"n_rows":121,"n_cols":24,"rows_kept":121}
["Un aspetto da non sottovalutare: se un campo colonna aggiunge molte colonne a una tabella pivot, questa diventerà molto larga. "]
["In questo esempio la tabella pivot è compresa tra la cella C10 e la cella X15 perché il campo colonna ha aggiunto 20 nuove colonne. Sono tante! Sarà necessario scorrere molto..."]
["Per continuare questa esercitazione, premere CTRL+PGGIÙ. Per passare al foglio precedente, premere CTRL+PGSU."]
[]
[]
[]
[]
[]
[]
[null,null,"Somma di Importo","Tipo"]
[null,null,"Acquirente","Alimentari","Assicurazione auto","Assicurazione casa","Assicurazione sanitaria","Biglietti","Biglietti aerei","Carburante","Cene fuori","Dentista","Elettricità","Elettronica","Imposte","Lezioni di musica","Libri","Musica","Parcheggio","Quote di associazione","Spese mediche","Sport","Vestiti","Totale complessivo"]
[null,null,"Mamma",{"v":470,"d":"€ 470"},{"v":74,"d":"€ 74"},{"v":235,"d":"€ 235"},{"v":70,"d":"€ 70"},null,null,{"v":74,"d":"€ 74"},null,{"v":235,"d":"€ 235"},{"v":70,"d":"€ 70"},{"$nulls":6},{"v":125,"d":"€ 125"},{"v":74,"d":"€ 74"},null,null,{"v":1427,"d":"€ 1,427"}]
[null,null,"Michela",{"$nulls":4},{"v":125,"d":"€ 125"},null,null,{"v":20,"d":"€ 20"},null,null,{"v":125,"d":"€ 125"},null,{"v":250,"d":"€ 250"},{"v":250,"d":"€ 250"},{"v":20,"d":"€ 20"},{"v":20,"d":"€ 20"},{"$nulls":3},{"v":125,"d":"€ 125"},{"v":935,"d":"€ 935"}]
[null,null,"Papà",{"$nulls":5},{"v":500,"d":"€ 500"},{"$nulls":5},{"v":500,"d":"€ 500"},{"$nulls":6},{"v":1000,"d":"€ 1,000"},null,{"v":2000,"d":"€ 2,000"}]
[null,null,"Totale complessivo",{"v":470,"d":"€ 470"},{"v":74,"d":"€ 74"},{"v":235,"d":"€ 235"},{"v":70,"d":"€ 70"},{"v":125,"d":"€ 125"},{"v":500,"d":"€ 500"},{"v":74,"d":"€ 74"},{"v":20,"d":"€ 20"},{"v":235,"d":"€ 235"},{"v":70,"d":"€ 70"},{"v":125,"d":"€ 125"},{"v":500,"d":"€ 500"},{"v":250,"d":"€ 250"},{"v":250,"d":"€ 250"},{"v":20,"d":"€ 20"},{"v":20,"d":"€ 20"},{"v":125,"d":"€ 125"},{"v":74,"d":"€ 74"},{"v":1000,"d":"€ 1,000"},{"v":125,"d":"€ 125"},{"v":4362,"d":"€ 4,362"}]
{"$rows_empty":84}
[null,"Data","Acquirente","Tipo","Importo"]
[null,"2017-01-17","Papà","Sport",{"v":1000,"d":"€ 1,000"}]
[null,"2017-01-17","Papà","Biglietti aerei",{"v":500,"d":"€ 500"}]
[null,"2017-01-17","Papà","Imposte",{"v":500,"d":"€ 500"}]
[null,"2017-02-20","Michela","Musica",{"v":20,"d":"€ 20"}]
[null,"2017-02-25","Michela","Biglietti",{"v":125,"d":"€ 125"}]
[null,"2017-01-21","Michela","Libri",{"v":250,"d":"€ 250"}]
[null,"2017-02-20","Michela","Cene fuori",{"v":20,"d":"€ 20"}]
[null,"2017-02-25","Michela","Vestiti",{"v":125,"d":"€ 125"}]
[null,"2017-01-21","Michela","Lezioni di musica",{"v":250,"d":"€ 250"}]
[null,"2017-02-20","Michela","Parcheggio",{"v":20,"d":"€ 20"}]
[null,"2017-02-25","Michela","Elettronica",{"v":125,"d":"€ 125"}]
[null,"2017-01-01","Mamma","Carburante",{"v":74,"d":"€ 74"}]
[null,"2017-01-15","Mamma","Alimentari",{"v":235,"d":"€ 235"}]
[null,"2017-01-21","Mamma","Quote di associazione",{"v":125,"d":"€ 125"}]
[null,"2017-02-02","Mamma","Alimentari",{"v":235,"d":"€ 235"}]
[null,"2017-01-01","Mamma","Spese mediche",{"v":74,"d":"€ 74"}]
[null,"2017-01-15","Mamma","Elettricità",{"v":70,"d":"€ 70"}]
[null,"2017-02-02","Mamma","Dentista",{"v":235,"d":"€ 235"}]
[null,"2017-01-01","Mamma","Assicurazione auto",{"v":74,"d":"€ 74"}]
[null,"2017-01-15","Mamma","Assicurazione sanitaria",{"v":70,"d":"€ 70"}]
[null,"2017-02-02","Mamma","Assicurazione casa",{"v":235,"d":"€ 235"}]

{"sheet":"12","index":12,"n_rows":119,"n_cols":5,"rows_kept":119}
["Esiste un'alternativa per evitare tabelle pivot eccessivamente larghe: usare un secondo campo riga. Un secondo campo riga apparirà rientrato sotto il primo campo riga."]
["In questo esempio è presente una tabella pivot nelle celle da D8 a E32. Mostra Papà, Mamma e Michela come primi campi riga nella colonna D. I tipi di spesa si trovano al di sotto come secondi campi riga con voci come Sport, Biglietti aerei, Cene fuori e così via."]
["INFORMAZIONI UTILI\nUn secondo campo riga crea una tabella pivot orientata in verticale anziché in orizzontale. Per alcune persone le tabelle pivot verticali sono più facili da leggere perché richiedono meno scorrimento in orizzontale."]
["PARLA EXCEL\nUn secondo campo riga viene chiamato anche \"campo riga secondario\"."]
["Per continuare questa esercitazione, premere CTRL+PGGIÙ. Per passare al foglio precedente, premere CTRL+PGSU."]
[]
[]
[{"$nulls":3},"Etichette di riga","Somma di Importo"]
[{"$nulls":3},"Papà",{"v":2000,"d":"€ 2,000"}]
[{"$nulls":3},"Biglietti aerei",{"v":500,"d":"€ 500"}]
[{"$nulls":3},"Imposte",{"v":500,"d":"€ 500"}]
[{"$nulls":3},"Sport",{"v":1000,"d":"€ 1,000"}]
[{"$nulls":3},"Michela",{"v":935,"d":"€ 935"}]
[{"$nulls":3},"Biglietti",{"v":125,"d":"€ 125"}]
[{"$nulls":3},"Cene fuori",{"v":20,"d":"€ 20"}]
[{"$nulls":3},"Elettronica",{"v":125,"d":"€ 125"}]
[{"$nulls":3},"Lezioni di musica",{"v":250,"d":"€ 250"}]
[{"$nulls":3},"Libri",{"v":250,"d":"€ 250"}]
[{"$nulls":3},"Musica",{"v":20,"d":"€ 20"}]
[{"$nulls":3},"Parcheggio",{"v":20,"d":"€ 20"}]
[{"$nulls":3},"Vestiti",{"v":125,"d":"€ 125"}]
[{"$nulls":3},"Mamma",{"v":1427,"d":"€ 1,427"}]
[{"$nulls":3},"Alimentari",{"v":470,"d":"€ 470"}]
[{"$nulls":3},"Assicurazione auto",{"v":74,"d":"€ 74"}]
[{"$nulls":3},"Assicurazione casa",{"v":235,"d":"€ 235"}]
[{"$nulls":3},"Assicurazione sanitaria",{"v":70,"d":"€ 70"}]
[{"$nulls":3},"Carburante",{"v":74,"d":"€ 74"}]
[{"$nulls":3},"Dentista",{"v":235,"d":"€ 235"}]
[{"$nulls":3},"Elettricità",{"v":70,"d":"€ 70"}]
[{"$nulls":3},"Quote di associazione",{"v":125,"d":"€ 125"}]
[{"$nulls":3},"Spese mediche",{"v":74,"d":"€ 74"}]
[{"$nulls":3},"Totale complessivo",{"v":4362,"d":"€ 4,362"}]
{"$rows_empty":65}
[null,"Data","Acquirente","Tipo","Importo"]
[null,"2017-01-17","Papà","Sport",{"v":1000,"d":"€ 1,000"}]
[null,"2017-01-17","Papà","Biglietti aerei",{"v":500,"d":"€ 500"}]
[null,"2017-01-17","Papà","Imposte",{"v":500,"d":"€ 500"}]
[null,"2017-02-20","Michela","Musica",{"v":20,"d":"€ 20"}]
[null,"2017-02-25","Michela","Biglietti",{"v":125,"d":"€ 125"}]
[null,"2017-01-21","Michela","Libri",{"v":250,"d":"€ 250"}]
[null,"2017-02-20","Michela","Cene fuori",{"v":20,"d":"€ 20"}]
[null,"2017-02-25","Michela","Vestiti",{"v":125,"d":"€ 125"}]
[null,"2017-01-21","Michela","Lezioni di musica",{"v":250,"d":"€ 250"}]
[null,"2017-02-20","Michela","Parcheggio",{"v":20,"d":"€ 20"}]
[null,"2017-02-25","Michela","Elettronica",{"v":125,"d":"€ 125"}]
[null,"2017-01-01","Mamma","Carburante",{"v":74,"d":"€ 74"}]
[null,"2017-01-15","Mamma","Alimentari",{"v":235,"d":"€ 235"}]
[null,"2017-01-21","Mamma","Quote di associazione",{"v":125,"d":"€ 125"}]
[null,"2017-02-02","Mamma","Alimentari",{"v":235,"d":"€ 235"}]
[null,"2017-01-01","Mamma","Spese mediche",{"v":74,"d":"€ 74"}]
[null,"2017-01-15","Mamma","Elettricità",{"v":70,"d":"€ 70"}]
[null,"2017-02-02","Mamma","Dentista",{"v":235,"d":"€ 235"}]
[null,"2017-01-01","Mamma","Assicurazione auto",{"v":74,"d":"€ 74"}]
[null,"2017-01-15","Mamma","Assicurazione sanitaria",{"v":70,"d":"€ 70"}]
[null,"2017-02-02","Mamma","Assicurazione casa",{"v":235,"d":"€ 235"}]

{"sheet":"13","index":13,"n_rows":3,"n_cols":1,"rows_kept":3}
["Nel foglio successivo si aggiungerà un secondo campo riga. Per farlo, si posizionerà il campo Tipo sotto il campo Acquirente nel campo Righe."]
["Immagine dell'elenco Campi tabella pivot con un cursore a freccia che trascina il campo Tipo nell'area Righe."]
["Per continuare questa esercitazione, premere CTRL+PGGIÙ. Per passare al foglio precedente, premere CTRL+PGSU."]

{"sheet":"14","index":14,"n_rows":122,"n_cols":9,"rows_kept":122}
["1. L'area della tabella pivot in questo esempio si trova nelle celle da B13 a C17. Passare a una di quelle celle. "]
["2. Premere ALT+JN, L1 per aprire l'elenco Campi tabella pivot. Lo stato attivo passa al campo di testo Cerca: \"Digitare le parole da cercare\". Non inserire niente, ma premere TAB una volta. NOTA: se l'elenco dei campi non viene aperto, premere di nuovo ALT+JN, L1."]
["3. Premere i tasti di direzione per passare al campo Tipo. Premere BARRA SPAZIATRICE per aggiungere il campo Tipo all'area Righe. "]
["4. Premere ESC per chiudere il riquadro Campi tabella pivot. "]
["Per continuare questa esercitazione, premere CTRL+PGGIÙ. Per passare al foglio precedente, premere CTRL+PGSU.",{"$nulls":7},{"$f":"IF(AND($B$15=\"Biglietti aerei\",$C$36=74),\"Complimenti! È stato aggiunto\",\" \")","v":" "}]
[{"$nulls":8},{"$f":"IF(AND($B$15=\"Biglietti aerei\",$C$36=74),\" un secondo campo riga nella\",\" \")","v":" "}]
[{"$nulls":8},{"$f":"IF(AND($B$15=\"Biglietti aerei\",$C$36=74),\"tabella pivot. Scorrere verso il\",\" \")","v":" "}]
[{"$nulls":8},{"$f":"IF(AND($B$15=\"Biglietti aerei\",$C$36=74),\"basso e fare clic su Successivo…\",\" \")","v":" "}]
[]
[]
[]
[]
[null,"Etichette di riga","Somma di Importo"]
[null,"Papà",{"v":2000,"d":"€ 2,000"}]
[null,"Michela",{"v":935,"d":"€ 935"}]
[null,"Mamma",{"v":1427,"d":"€ 1,427"}]
[null,"Totale complessivo",{"v":4362,"d":"€ 4,362"}]
{"$rows_empty":83}
[null,"Data","Acquirente","Tipo","Importo"]
[null,"2017-01-17","Papà","Sport",{"v":1000,"d":"€ 1,000"}]
[null,"2017-01-17","Papà","Biglietti aerei",{"v":500,"d":"€ 500"}]
[null,"2017-01-17","Papà","Imposte",{"v":500,"d":"€ 500"}]
[null,"2017-02-20","Michela","Musica",{"v":20,"d":"€ 20"}]
[null,"2017-02-25","Michela","Biglietti",{"v":125,"d":"€ 125"}]
[null,"2017-01-21","Michela","Libri",{"v":250,"d":"€ 250"}]
[null,"2017-02-20","Michela","Cene fuori",{"v":20,"d":"€ 20"}]
[null,"2017-02-25","Michela","Vestiti",{"v":125,"d":"€ 125"}]
[null,"2017-01-21","Michela","Lezioni di musica",{"v":250,"d":"€ 250"}]
[null,"2017-02-20","Michela","Parcheggio",{"v":20,"d":"€ 20"}]
[null,"2017-02-25","Michela","Elettronica",{"v":125,"d":"€ 125"}]
[null,"2017-01-01","Mamma","Carburante",{"v":74,"d":"€ 74"}]
[null,"2017-01-15","Mamma","Alimentari",{"v":235,"d":"€ 235"}]
[null,"2017-01-21","Mamma","Quote di associazione",{"v":125,"d":"€ 125"}]
[null,"2017-02-02","Mamma","Alimentari",{"v":235,"d":"€ 235"}]
[null,"2017-01-01","Mamma","Spese mediche",{"v":74,"d":"€ 74"}]
[null,"2017-01-15","Mamma","Elettricità",{"v":70,"d":"€ 70"}]
[null,"2017-02-02","Mamma","Dentista",{"v":235,"d":"€ 235"}]
[null,"2017-01-01","Mamma","Assicurazione auto",{"v":74,"d":"€ 74"}]
[null,"2017-01-15","Mamma","Assicurazione sanitaria",{"v":70,"d":"€ 70"}]
[null,"2017-02-02","Mamma","Assicurazione casa",{"v":235,"d":"€ 235"}]

{"sheet":"15","index":15,"n_rows":121,"n_cols":7,"rows_kept":121}
["Per semplificare la tabella pivot, è possibile comprimere i dati per il secondo campo riga \"in alto\" e nasconderli. "]
["La tabella pivot di questo esempio si trova nelle celle da F7 a G31. Selezionare la cella F8 per scegliere il primo campo riga per Papà. Quindi premere ALT+JN > E per espandere il secondo campo oppure CO per comprimerlo."]
["Per continuare questa esercitazione, premere CTRL+PGGIÙ. Per passare al foglio precedente, premere CTRL+PGSU."]
[]
[]
[{"$nulls":5},{"$f":"IF(AND($F$9=\"Michela\",$G$9=935),\"Bene!\",\" \")","v":" "}]
[{"$nulls":5},"Etichette di riga","Somma di Importo"]
[{"$nulls":5},"Papà",{"v":2000,"d":"€ 2,000"}]
[{"$nulls":5},"Biglietti aerei",{"v":500,"d":"€ 500"}]
[{"$nulls":5},"Imposte",{"v":500,"d":"€ 500"}]
[{"$nulls":5},"Sport",{"v":1000,"d":"€ 1,000"}]
[{"$nulls":5},"Michela",{"v":935,"d":"€ 935"}]
[{"$nulls":5},"Biglietti",{"v":125,"d":"€ 125"}]
[{"$nulls":5},"Cene fuori",{"v":20,"d":"€ 20"}]
[{"$nulls":5},"Elettronica",{"v":125,"d":"€ 125"}]
[{"$nulls":5},"Lezioni di musica",{"v":250,"d":"€ 250"}]
[{"$nulls":5},"Libri",{"v":250,"d":"€ 250"}]
[{"$nulls":5},"Musica",{"v":20,"d":"€ 20"}]
[{"$nulls":5},"Parcheggio",{"v":20,"d":"€ 20"}]
[{"$nulls":5},"Vestiti",{"v":125,"d":"€ 125"}]
[{"$nulls":5},"Mamma",{"v":1427,"d":"€ 1,427"}]
[{"$nulls":5},"Alimentari",{"v":470,"d":"€ 470"}]
[{"$nulls":5},"Assicurazione auto",{"v":74,"d":"€ 74"}]
[{"$nulls":5},"Assicurazione casa",{"v":235,"d":"€ 235"}]
[{"$nulls":5},"Assicurazione sanitaria",{"v":70,"d":"€ 70"}]
[{"$nulls":5},"Carburante",{"v":74,"d":"€ 74"}]
[{"$nulls":5},"Dentista",{"v":235,"d":"€ 235"}]
[{"$nulls":5},"Elettricità",{"v":70,"d":"€ 70"}]
[{"$nulls":5},"Quote di associazione",{"v":125,"d":"€ 125"}]
[{"$nulls":5},"Spese mediche",{"v":74,"d":"€ 74"}]
[{"$nulls":5},"Totale complessivo",{"v":4362,"d":"€ 4,362"}]
{"$rows_empty":68}
[null,"Data","Acquirente","Tipo","Importo"]
[null,"2017-01-17","Papà","Sport",{"v":1000,"d":"€ 1,000"}]
[null,"2017-01-17","Papà","Biglietti aerei",{"v":500,"d":"€ 500"}]
[null,"2017-01-17","Papà","Imposte",{"v":500,"d":"€ 500"}]
[null,"2017-02-20","Michela","Musica",{"v":20,"d":"€ 20"}]
[null,"2017-02-25","Michela","Biglietti",{"v":125,"d":"€ 125"}]
[null,"2017-01-21","Michela","Libri",{"v":250,"d":"€ 250"}]
[null,"2017-02-20","Michela","Cene fuori",{"v":20,"d":"€ 20"}]
[null,"2017-02-25","Michela","Vestiti",{"v":125,"d":"€ 125"}]
[null,"2017-01-21","Michela","Lezioni di musica",{"v":250,"d":"€ 250"}]
[null,"2017-02-20","Michela","Parcheggio",{"v":20,"d":"€ 20"}]
[null,"2017-02-25","Michela","Elettronica",{"v":125,"d":"€ 125"}]
[null,"2017-01-01","Mamma","Carburante",{"v":74,"d":"€ 74"}]
[null,"2017-01-15","Mamma","Alimentari",{"v":235,"d":"€ 235"}]
[null,"2017-01-21","Mamma","Quote di associazione",{"v":125,"d":"€ 125"}]
[null,"2017-02-02","Mamma","Alimentari",{"v":235,"d":"€ 235"}]
[null,"2017-01-01","Mamma","Spese mediche",{"v":74,"d":"€ 74"}]
[null,"2017-01-15","Mamma","Elettricità",{"v":70,"d":"€ 70"}]
[null,"2017-02-02","Mamma","Dentista",{"v":235,"d":"€ 235"}]
[null,"2017-01-01","Mamma","Assicurazione auto",{"v":74,"d":"€ 74"}]
[null,"2017-01-15","Mamma","Assicurazione sanitaria",{"v":70,"d":"€ 70"}]
[null,"2017-02-02","Mamma","Assicurazione casa",{"v":235,"d":"€ 235"}]

{"sheet":"16","index":16,"n_rows":121,"n_cols":7,"rows_kept":121}
["Si può anche comprimere o espandere tutto il secondo campo riga, per semplificare ulteriormente la tabella pivot."]
["Ecco la chiave"]
["Selezionare l'intervallo di dati della tabella pivot da G31 a F7, quindi premere ALT+JN > CO per comprimere l'intero gruppo. Viceversa, premendo ALT+JN > E verrà espanso l'interno gruppo."]
["Per continuare questa esercitazione, premere CTRL+PGGIÙ. Per passare al foglio precedente, premere CTRL+PGSU."]
[]
[{"$nulls":5},{"$f":"IF(AND($F$9=\"Michela\",$G$9=935),\"Esatto!\",\" \")","v":" "}]
[{"$nulls":5},"Etichette di riga","Somma di Importo"]
[{"$nulls":5},"Papà",{"v":2000,"d":"€ 2,000"}]
[{"$nulls":5},"Biglietti aerei",{"v":500,"d":"€ 500"}]
[{"$nulls":5},"Imposte",{"v":500,"d":"€ 500"}]
[{"$nulls":5},"Sport",{"v":1000,"d":"€ 1,000"}]
[{"$nulls":5},"Michela",{"v":935,"d":"€ 935"}]
[{"$nulls":5},"Biglietti",{"v":125,"d":"€ 125"}]
[{"$nulls":5},"Cene fuori",{"v":20,"d":"€ 20"}]
[{"$nulls":5},"Elettronica",{"v":125,"d":"€ 125"}]
[{"$nulls":5},"Lezioni di musica",{"v":250,"d":"€ 250"}]
[{"$nulls":5},"Libri",{"v":250,"d":"€ 250"}]
[{"$nulls":5},"Musica",{"v":20,"d":"€ 20"}]
[{"$nulls":5},"Parcheggio",{"v":20,"d":"€ 20"}]
[{"$nulls":5},"Vestiti",{"v":125,"d":"€ 125"}]
[{"$nulls":5},"Mamma",{"v":1427,"d":"€ 1,427"}]
[{"$nulls":5},"Alimentari",{"v":470,"d":"€ 470"}]
[{"$nulls":5},"Assicurazione auto",{"v":74,"d":"€ 74"}]
[{"$nulls":5},"Assicurazione casa",{"v":235,"d":"€ 235"}]
[{"$nulls":5},"Assicurazione sanitaria",{"v":70,"d":"€ 70"}]
[{"$nulls":5},"Carburante",{"v":74,"d":"€ 74"}]
[{"$nulls":5},"Dentista",{"v":235,"d":"€ 235"}]
[{"$nulls":5},"Elettricità",{"v":70,"d":"€ 70"}]
[{"$nulls":5},"Quote di associazione",{"v":125,"d":"€ 125"}]
[{"$nulls":5},"Spese mediche",{"v":74,"d":"€ 74"}]
[{"$nulls":5},"Totale complessivo",{"v":4362,"d":"€ 4,362"}]
{"$rows_empty":68}
[null,"Data","Acquirente","Tipo","Importo"]
[null,"2017-01-17","Papà","Sport",{"v":1000,"d":"€ 1,000"}]
[null,"2017-01-17","Papà","Biglietti aerei",{"v":500,"d":"€ 500"}]
[null,"2017-01-17","Papà","Imposte",{"v":500,"d":"€ 500"}]
[null,"2017-02-20","Michela","Musica",{"v":20,"d":"€ 20"}]
[null,"2017-02-25","Michela","Biglietti",{"v":125,"d":"€ 125"}]
[null,"2017-01-21","Michela","Libri",{"v":250,"d":"€ 250"}]
[null,"2017-02-20","Michela","Cene fuori",{"v":20,"d":"€ 20"}]
[null,"2017-02-25","Michela","Vestiti",{"v":125,"d":"€ 125"}]
[null,"2017-01-21","Michela","Lezioni di musica",{"v":250,"d":"€ 250"}]
[null,"2017-02-20","Michela","Parcheggio",{"v":20,"d":"€ 20"}]
[null,"2017-02-25","Michela","Elettronica",{"v":125,"d":"€ 125"}]
[null,"2017-01-01","Mamma","Carburante",{"v":74,"d":"€ 74"}]
[null,"2017-01-15","Mamma","Alimentari",{"v":235,"d":"€ 235"}]
[null,"2017-01-21","Mamma","Quote di associazione",{"v":125,"d":"€ 125"}]
[null,"2017-02-02","Mamma","Alimentari",{"v":235,"d":"€ 235"}]
[null,"2017-01-01","Mamma","Spese mediche",{"v":74,"d":"€ 74"}]
[null,"2017-01-15","Mamma","Elettricità",{"v":70,"d":"€ 70"}]
[null,"2017-02-02","Mamma","Dentista",{"v":235,"d":"€ 235"}]
[null,"2017-01-01","Mamma","Assicurazione auto",{"v":74,"d":"€ 74"}]
[null,"2017-01-15","Mamma","Assicurazione sanitaria",{"v":70,"d":"€ 70"}]
[null,"2017-02-02","Mamma","Assicurazione casa",{"v":235,"d":"€ 235"}]

{"sheet":"17","index":17,"n_rows":107,"n_cols":13,"rows_kept":107}
["I campi colonna possono anche essere più di uno. Anche questi possono essere compressi o espansi."]
["La tabella pivot in questo esempio si estende dalla cella B13 alla cella M19. In questo caso abbiamo una categoria Tipo nella sezione Colonne che include le voci relative ad Alimentari e Utenze."]
["PROVA\nSelezionare Alimentari nella cella C14 e premere ALT+JN > CO per comprimere l'intero campo. Premere ALT+JN > E per espanderlo."]
["Per continuare questa esercitazione, premere CTRL+PGGIÙ. Per passare al foglio precedente, premere CTRL+PGSU."]
{"$rows_empty":7}
[null,null,{"$f":"IF(AND($C$16=398,$D$15=\"Gen\"),\"Ben fatto!\",\" \")","v":" "}]
[null,"Somma di Importo","Etichette di colonna"]
[null,null,"Alimentari",{"$nulls":3},"Alimentari Totale","Utenze",{"$nulls":3},"Utenze Totale","Totale complessivo"]
[null,"Etichette di riga","Gen","Feb","Mar","Apr",null,"Gen","Feb","Mar","Apr"]
[null,"Michela",{"v":74,"d":"€ 74"},{"v":74,"d":"€ 74"},{"v":125,"d":"€ 125"},{"v":125,"d":"€ 125"},{"v":398,"d":"€ 398"},{"$nulls":5},{"v":398,"d":"€ 398"}]
[null,"Papà",{"v":235,"d":"€ 235"},{"v":235,"d":"€ 235"},{"v":235,"d":"€ 235"},{"v":74,"d":"€ 74"},{"v":779,"d":"€ 779"},{"$nulls":5},{"v":779,"d":"€ 779"}]
[null,"Mamma",{"$nulls":5},{"v":1000,"d":"€ 1,000"},{"v":1000,"d":"€ 1,000"},{"v":20,"d":"€ 20"},{"v":70,"d":"€ 70"},{"v":2090,"d":"€ 2,090"},{"v":2090,"d":"€ 2,090"}]
[null,"Totale complessivo",{"v":309,"d":"€ 309"},{"v":309,"d":"€ 309"},{"v":360,"d":"€ 360"},{"v":199,"d":"€ 199"},{"v":1177,"d":"€ 1,177"},{"v":1000,"d":"€ 1,000"},{"v":1000,"d":"€ 1,000"},{"v":20,"d":"€ 20"},{"v":70,"d":"€ 70"},{"v":2090,"d":"€ 2,090"},{"v":3267,"d":"€ 3,267"}]
{"$rows_empty":75}
[null,"Mese","Acquirente","Tipo","Importo"]
[null,"Gen","Michela","Alimentari",{"v":74,"d":"€ 74"}]
[null,"Gen","Papà","Alimentari",{"v":235,"d":"€ 235"}]
[null,"Gen","Mamma","Utenze",{"v":1000,"d":"€ 1,000"}]
[null,"Feb","Michela","Alimentari",{"v":74,"d":"€ 74"}]
[null,"Feb","Papà","Alimentari",{"v":235,"d":"€ 235"}]
[null,"Feb","Mamma","Utenze",{"v":1000,"d":"€ 1,000"}]
[null,"Mar","Michela","Alimentari",{"v":125,"d":"€ 125"}]
[null,"Mar","Papà","Alimentari",{"v":235,"d":"€ 235"}]
[null,"Mar","Mamma","Utenze",{"v":20,"d":"€ 20"}]
[null,"Apr","Michela","Alimentari",{"v":125,"d":"€ 125"}]
[null,"Apr","Papà","Alimentari",{"v":74,"d":"€ 74"}]
[null,"Apr","Mamma","Utenze",{"v":70,"d":"€ 70"}]

{"sheet":"18","index":18,"n_rows":146,"n_cols":5,"rows_kept":146}
["Da tenere presente: se servono altri dettagli, si possono aggiungere molti altri campi riga e campi colonna. In questo esempio sono disponibili tre campi riga."]
["La tabella pivot in questo esempio è compresa tra la cella D8 e la cella E29 e contiene i campi Stagione, Acquirente e Tipo nella colonna D, e Somma di Importo nella colonna E."]
["L'ESPERTO SUGGERISCE\nÈ possibile aggiungere diversi campi, ma non sempre è necessario. In questo esempio va bene. A volte, però, un numero eccessivo di campi, con tutti i relativi rientri, può rendere la tabella pivot troppo complessa per altre persone. "]
["Per continuare questa esercitazione, premere CTRL+PGGIÙ. Per passare al foglio precedente, premere CTRL+PGSU."]
[]
[]
[]
[{"$nulls":3},"Etichette di riga","Somma di Importo"]
[{"$nulls":3},"Autunno",{"v":5425,"d":"€ 5,425"}]
[{"$nulls":3},"Mamma",{"v":5425,"d":"€ 5,425"}]
[{"$nulls":3},"Affitto",{"v":3220,"d":"€ 3,220"}]
[{"$nulls":3},"Assicurazione",{"v":1272,"d":"€ 1,272"}]
[{"$nulls":3},"Utenze",{"v":933,"d":"€ 933"}]
[{"$nulls":3},"Primavera",{"v":4760,"d":"€ 4,760"}]
[{"$nulls":3},"Papà",{"v":4760,"d":"€ 4,760"}]
[{"$nulls":3},"Affitto",{"v":2400,"d":"€ 2,400"}]
[{"$nulls":3},"Assicurazione",{"v":1040,"d":"€ 1,040"}]
[{"$nulls":3},"Utenze",{"v":1320,"d":"€ 1,320"}]
[{"$nulls":3},"Estate",{"v":3473,"d":"€ 3,473"}]
[{"$nulls":3},"Mamma",{"v":3473,"d":"€ 3,473"}]
[{"$nulls":3},"Affitto",{"v":1260,"d":"€ 1,260"}]
[{"$nulls":3},"Assicurazione",{"v":1080,"d":"€ 1,080"}]
[{"$nulls":3},"Utenze",{"v":1133,"d":"€ 1,133"}]
[{"$nulls":3},"Inverno",{"v":4100,"d":"€ 4,100"}]
[{"$nulls":3},"Papà",{"v":4100,"d":"€ 4,100"}]
[{"$nulls":3},"Affitto",{"v":1420,"d":"€ 1,420"}]
[{"$nulls":3},"Assicurazione",{"v":1030,"d":"€ 1,030"}]
[{"$nulls":3},"Utenze",{"v":1650,"d":"€ 1,650"}]
[{"$nulls":3},"Totale complessivo",{"v":17758,"d":"€ 17,758"}]
{"$rows_empty":68}
[null,"Acquirente","Stagione","Tipo","Importo"]
[null,"Papà","Inverno","Assicurazione",{"v":300,"d":"€ 300"}]
[null,"Papà","Inverno","Affitto",{"v":200,"d":"€ 200"}]
[null,"Papà","Inverno","Utenze",{"v":400,"d":"€ 400"}]
[null,"Papà","Inverno","Assicurazione",{"v":300,"d":"€ 300"}]
[null,"Papà","Inverno","Affitto",{"v":800,"d":"€ 800"}]
[null,"Papà","Inverno","Utenze",{"v":400,"d":"€ 400"}]
[null,"Papà","Inverno","Assicurazione",{"v":200,"d":"€ 200"}]
[null,"Papà","Inverno","Affitto",{"v":300,"d":"€ 300"}]
[null,"Papà","Inverno","Utenze",{"v":450,"d":"€ 450"}]
[null,"Papà","Inverno","Assicurazione",{"v":230,"d":"€ 230"}]
[null,"Papà","Inverno","Affitto",{"v":120,"d":"€ 120"}]
[null,"Papà","Inverno","Utenze",{"v":400,"d":"€ 400"}]
[null,"Papà","Primavera","Assicurazione",{"v":210,"d":"€ 210"}]
[null,"Papà","Primavera","Affitto",{"v":300,"d":"€ 300"}]
[null,"Papà","Primavera","Utenze",{"v":400,"d":"€ 400"}]
[null,"Papà","Primavera","Assicurazione",{"v":230,"d":"€ 230"}]
[null,"Papà","Primavera","Affitto",{"v":900,"d":"€ 900"}]
[null,"Papà","Primavera","Utenze",{"v":300,"d":"€ 300"}]
[null,"Papà","Primavera","Assicurazione",{"v":200,"d":"€ 200"}]
[null,"Papà","Primavera","Affitto",{"v":1000,"d":"€ 1,000"}]
[null,"Papà","Primavera","Utenze",{"v":220,"d":"€ 220"}]
[null,"Papà","Primavera","Assicurazione",{"v":400,"d":"€ 400"}]
[null,"Papà","Primavera","Affitto",{"v":200,"d":"€ 200"}]
[null,"Papà","Primavera","Utenze",{"v":400,"d":"€ 400"}]
[null,"Mamma","Estate","Assicurazione",{"v":100,"d":"€ 100"}]
[null,"Mamma","Estate","Affitto",{"v":30,"d":"€ 30"}]
[null,"Mamma","Estate","Utenze",{"v":123,"d":"€ 123"}]
[null,"Mamma","Estate","Assicurazione",{"v":300,"d":"€ 300"}]
[null,"Mamma","Estate","Affitto",{"v":350,"d":"€ 350"}]
[null,"Mamma","Estate","Utenze",{"v":230,"d":"€ 230"}]
[null,"Mamma","Estate","Assicurazione",{"v":120,"d":"€ 120"}]
[null,"Mamma","Estate","Affitto",{"v":640,"d":"€ 640"}]
[null,"Mamma","Estate","Utenze",{"v":530,"d":"€ 530"}]
[null,"Mamma","Estate","Assicurazione",{"v":560,"d":"€ 560"}]
[null,"Mamma","Estate","Affitto",{"v":240,"d":"€ 240"}]
[null,"Mamma","Estate","Utenze",{"v":250,"d":"€ 250"}]
[null,"Mamma","Autunno","Assicurazione",{"v":62,"d":"€ 62"}]
[null,"Mamma","Autunno","Affitto",{"v":600,"d":"€ 600"}]
[null,"Mamma","Autunno","Utenze",{"v":340,"d":"€ 340"}]
[null,"Mamma","Autunno","Assicurazione",{"v":205,"d":"€ 205"}]
[null,"Mamma","Autunno","Affitto",{"v":500,"d":"€ 500"}]
[null,"Mamma","Autunno","Utenze",{"v":403,"d":"€ 403"}]
[null,"Mamma","Autunno","Assicurazione",{"v":503,"d":"€ 503"}]
[null,"Mamma","Autunno","Affitto",{"v":2000,"d":"€ 2,000"}]
[null,"Mamma","Autunno","Utenze",{"v":140,"d":"€ 140"}]
[null,"Mamma","Autunno","Assicurazione",{"v":502,"d":"€ 502"}]
[null,"Mamma","Autunno","Affitto",{"v":120,"d":"€ 120"}]
[null,"Mamma","Autunno","Utenze",{"v":50,"d":"€ 50"}]

{"sheet":"19","index":19,"n_rows":55,"n_cols":5,"rows_kept":55}
["Pronti per esercitarsi ancora? Rivedere i dati riportati sotto nelle celle da B7 a E55. Quando si è pronti, passare al foglio successivo per mettere in pratica quanto appreso finora. "]
["Non è necessario esaminare tutte le righe di dati. Basta osservare i nomi dei campi nella riga 7. Questi sono i campi su cui si lavorerà nel foglio successivo. "]
["Per continuare questa esercitazione, premere CTRL+PGGIÙ. Per passare al foglio precedente, premere CTRL+PGSU."]
[]
[]
[]
[null,"Stagione","Rappresentante","Prodotto","Unità vendute"]
[null,"Inverno","Ginevra","Arance",300]
[null,"Inverno","Giorgio","Pompelmo",200]
[null,"Inverno","Davide","Mele",400]
[null,"Inverno","Ginevra","Banane",300]
[null,"Inverno","Giorgio","Arance",800]
[null,"Inverno","Davide","Pompelmo",400]
[null,"Inverno","Ginevra","Mele",200]
[null,"Inverno","Giorgio","Banane",300]
[null,"Inverno","Davide","Arance",450]
[null,"Inverno","Ginevra","Pompelmo",230]
[null,"Inverno","Giorgio","Mele",120]
[null,"Inverno","Davide","Banane",400]
[null,"Primavera","Ginevra","Barbabietole",210]
[null,"Primavera","Giorgio","Patate",300]
[null,"Primavera","Davide","Lattuga",400]
[null,"Primavera","Ginevra","Ravanelli",230]
[null,"Primavera","Giorgio","Barbabietole",900]
[null,"Primavera","Davide","Patate",300]
[null,"Primavera","Ginevra","Lattuga",200]
[null,"Primavera","Giorgio","Ravanelli",{"v":1000,"d":"1,000"}]
[null,"Primavera","Davide","Barbabietole",220]
[null,"Primavera","Ginevra","Patate",400]
[null,"Primavera","Giorgio","Lattuga",200]
[null,"Primavera","Davide","Ravanelli",400]
[null,"Estate","Ginevra","Mirtilli",100]
[null,"Estate","Giorgio","Fragole",30]
[null,"Estate","Davide","Uva",123]
[null,"Estate","Ginevra","Zucche",300]
[null,"Estate","Giorgio","Mirtilli",350]
[null,"Estate","Davide","Fragole",230]
[null,"Estate","Ginevra","Uva",120]
[null,"Estate","Giorgio","Zucche",640]
[null,"Estate","Davide","Mirtilli",530]
[null,"Estate","Ginevra","Fragole",560]
[null,"Estate","Giorgio","Uva",240]
[null,"Estate","Davide","Zucche",250]
[null,"Autunno","Ginevra","Cucurbita",62]
[null,"Autunno","Giorgio","Zucchine",600]
[null,"Autunno","Davide","Mele",340]
[null,"Autunno","Ginevra","Arance",205]
[null,"Autunno","Giorgio","Cucurbita",500]
[null,"Autunno","Davide","Zucchine",403]
[null,"Autunno","Ginevra","Mele",503]
[null,"Autunno","Giorgio","Arance",{"v":2000,"d":"2,000"}]
[null,"Autunno","Davide","Cucurbita",140]
[null,"Autunno","Ginevra","Zucchine",502]
[null,"Autunno","Giorgio","Mele",120]
[null,"Autunno","Davide","Arance",50]

{"sheet":"20","index":20,"n_rows":17,"n_cols":11,"rows_kept":17}
["1. L'area della tabella pivot in questo esempio si trova nelle celle da B12 a C17. Passare a una di quelle celle. \n\n"]
["2. Premere ALT+JN, L1 per aprire l'elenco Campi tabella pivot. Lo stato attivo passa al campo di testo Cerca: \"Digitare le parole da cercare\". Non inserire niente, ma premere TAB una volta. NOTA: se l'elenco dei campi non viene aperto, premere di nuovo ALT+JN, L1."]
["3. Premere i tasti di direzione per passare al campo Rappresentante. Premere BARRA SPAZIATRICE per aggiungere il campo Rappresentante all'area Righe. Per visualizzare i dettagli relativi a Rappresentante nell'area Colonne, premere TAB per spostarsi sul campo Rappresentante nella sezione Riga, quindi premere BARRA SPAZIATRICE e selezionare \"Sposta nelle etichette di colonna\". Premere ESC per chiudere il riquadro Campi tabella pivot. "]
["4. Stabilire chi ha venduto più articoli in autunno, quindi selezionare una voce nella cella K8. "]
["Per continuare questa esercitazione, premere CTRL+PGGIÙ. Per passare al foglio precedente, premere CTRL+PGSU."]
[]
[{"$nulls":10},"Selezionare una voce:"]
[]
[{"$nulls":10},{"$f":"IF($K$8=\"Giorgio\",\"Giusto!\",IF($K$8=\"Davide\",\"Riprova...\",IF($K$8=\"Ginevra\",\"Non è esatto...\",IF($K$8=\" \",\" \",\" \"))))","v":" "}]
[]
[]
[null,"Etichette di riga","Somma di Unità vendute"]
[null,"Autunno",{"v":5425,"d":"5,425"}]
[null,"Primavera",{"v":4760,"d":"4,760"}]
[null,"Estate",{"v":3473,"d":"3,473"}]
[null,"Inverno",{"v":4100,"d":"4,100"}]
[null,"Totale complessivo",{"v":17758,"d":"17,758"}]

{"sheet":"21","index":21,"n_rows":14,"n_cols":10,"rows_kept":14}
["1. Fare clic nella cella B13 per attivare la tabella pivot denominata \"Somma di Unità vendute\".\n\n"]
["2. Premere ALT+JN, L1 per aprire l'elenco Campi tabella pivot. Lo stato attivo passa al campo di testo Cerca: \"Digitare le parole da cercare\". Non inserire niente, ma premere TAB una volta. NOTA: se l'elenco dei campi non viene aperto, premere di nuovo ALT+JN, L1."]
["3. Usare i tasti di direzione e BARRA SPAZIATRICE per espandere l'esempio in una tabella pivot verticale con le stagioni a sinistra e i rappresentanti rientrati sotto ogni stagione. Premere ESC per chiudere il riquadro Campi tabella pivot. "]
["Per continuare questa esercitazione, premere CTRL+PGGIÙ. Per passare al foglio precedente, premere CTRL+PGSU."]
[{"$nulls":9},{"$f":"IF(AND(B$14=\"Autunno\",$C$17=3220),\"Ottimo! È stato inserito un campo\",\" \")","v":" "}]
[{"$nulls":9},{"$f":"IF(AND(B$14=\"Autunno\",$C$17=3220),\"riga secondario. Ora scorrere verso\",\" \")","v":" "}]
[{"$nulls":9},{"$f":"IF(AND(B$14=\"Autunno\",$C$17=3220),\"il basso e fare clic su Successivo.\",\" \")","v":" "}]
[]
[]
[]
[]
[]
[null,"Somma di Unità vendute"]
[null,{"v":17758,"d":"17,758"}]

{"sheet":"22","index":22,"n_rows":14,"n_cols":10,"rows_kept":14}
["1. Fare clic nella cella B13 per attivare la tabella pivot denominata \"Somma di Unità vendute\"."]
["2. Premere ALT+JN, L1 per aprire l'elenco Campi tabella pivot. Lo stato attivo passa al campo di testo Cerca: \"Digitare le parole da cercare\". Non inserire niente, ma premere TAB una volta. NOTA: se l'elenco dei campi non viene aperto, premere di nuovo ALT+JN, L1."]
["3. Premere i tasti di direzione e BARRA SPAZIATRICE per modificare l'esempio in modo che ogni prodotto venga visualizzato in una riga specifica e ogni stagione in una colonna specifica."]
["Per continuare questa esercitazione, premere CTRL+PGGIÙ. Per passare al foglio precedente, premere CTRL+PGSU.",{"$nulls":8},{"$f":"IF(AND($B$15=\"Arance\",$G$28=1505),\"Ottimo! Sono stati inseriti un campo\",\" \")","v":" "}]
[{"$nulls":9},{"$f":"IF(AND($B$15=\"Arance\",$G$28=1505),\"riga a sinistra e un campo colonna \",\" \")","v":" "}]
[{"$nulls":9},{"$f":"IF(AND($B$15=\"Arance\",$G$28=1505),\"con quattro nuove colonne.\",\" \")","v":" "}]
[{"$nulls":9},{"$f":"IF(AND($B$15=\"Arance\",$G$28=1505),\"Scorrere verso il basso e\",\" \")","v":" "}]
[{"$nulls":9},{"$f":"IF(AND($B$15=\"Arance\",$G$28=1505),\"fare clic su Successivo...\",\" \")","v":" "}]
[]
[]
[]
[]
[null,"Somma di Unità vendute"]
[null,{"v":17758,"d":"17,758"}]

{"sheet":"23","index":23,"n_rows":16,"n_cols":18,"rows_kept":16}
["1. Fare clic nella cella B13 per attivare la tabella pivot denominata \"Somma di Unità vendute\".\n\n"]
["2. Premere ALT+JN, L1 per aprire l'elenco Campi tabella pivot. Lo stato attivo passa al campo di testo Cerca: \"Digitare le parole da cercare\". Non inserire niente, ma premere TAB una volta. NOTA: se l'elenco dei campi non viene aperto, premere di nuovo ALT+JN, L1."]
["3. Premere TAB, i tasti di direzione e BARRA SPAZIATRICE per modificare l'esempio in modo da visualizzare i rappresentanti a sinistra con le stagioni rientrate al di sotto."]
["Per continuare questa esercitazione, premere CTRL+PGGIÙ. Per passare al foglio precedente, premere CTRL+PGSU."]
[{"$nulls":9},{"$f":"IF(AND($B$14=\"Davide\",$C$14=5036),\"Ottimo! Ora è più facile\",\" \")","v":" "}]
[{"$nulls":9},{"$f":"IF(AND($B$14=\"Davide\",$C$14=5036),\"da leggere. Scorrere verso il \",\" \")","v":" "}]
[{"$nulls":9},{"$f":"IF(AND($B$14=\"Davide\",$C$14=5036),\"basso e fare clic su Successivo...\",\" \")","v":" "}]
[]
[]
[]
[]
[]
[null,null,"Etichette di colonna"]
[null,null,"Davide",{"$nulls":3},"Davide Totale","Giorgio",{"$nulls":3},"Giorgio Totale","Ginevra",{"$nulls":3},"Ginevra Totale","Totale complessivo"]
[null,null,"Autunno","Primavera","Estate","Inverno",null,"Autunno","Primavera","Estate","Inverno",null,"Autunno","Primavera","Estate","Inverno"]
[null,"Somma di Unità vendute",933,{"v":1320,"d":"1,320"},{"v":1133,"d":"1,133"},{"v":1650,"d":"1,650"},{"v":5036,"d":"5,036"},{"v":3220,"d":"3,220"},{"v":2400,"d":"2,400"},{"v":1260,"d":"1,260"},{"v":1420,"d":"1,420"},{"v":8300,"d":"8,300"},{"v":1272,"d":"1,272"},{"v":1040,"d":"1,040"},{"v":1080,"d":"1,080"},{"v":1030,"d":"1,030"},{"v":4422,"d":"4,422"},{"v":17758,"d":"17,758"}]

{"sheet":"24","index":24,"n_rows":14,"n_cols":9,"rows_kept":14}
["1. Fare clic nella cella B13 per attivare la tabella pivot denominata \"Somma di Unità vendute\"."]
["2. Premere ALT+JN, L1 per aprire l'elenco Campi tabella pivot. Lo stato attivo passa al campo di testo Cerca: \"Digitare le parole da cercare\". Non inserire niente, ma premere TAB una volta. NOTA: se l'elenco dei campi non viene aperto, premere di nuovo ALT+JN, L1."]
["3. Premere TAB, i tasti di direzione e BARRA SPAZIATRICE per modificare l'esempio in modo che ogni rappresentante abbia campi colonna specifici con le stagioni a sinistra e i prodotti rientrati al di sotto."]
["4. Selezionare la cella I9 e selezionare il numero di pompelmi venduti da Davide in inverno."]
["Per continuare questa esercitazione, premere CTRL+PGGIÙ. Per passare al foglio precedente, premere CTRL+PGSU."]
[]
[]
[{"$nulls":8},"Selezionare una voce:"]
[]
[{"$nulls":8},{"$f":"IF($I$9=400,\"Giusto!\",IF($I$9=530,\"Riprova...\",IF($I$9=123,\"Non è esatto...\",\" \")))","v":" "}]
[]
[]
[null,"Somma di Unità vendute"]
[null,{"v":17758,"d":"17,758"}]

{"sheet":"Altre informazioni","index":25,"n_rows":8,"n_cols":1,"rows_kept":8}
["Ottimo. Le tabelle pivot sono formidabili."]
["Ma non fermiamoci qui. C'è altro da scoprire..."]
["Altre informazioni sulle tabelle pivot\nPer saperne di più, leggere questo utile articolo sulle tabelle pivot."]
["Informazioni sull'aggiornamento\nLeggere questo importante articolo su come aggiornare le tabelle pivot. "]
["Community\nMettersi in contatto con altri appassionati di Excel. È possibile offrire e ricevere aiuto."]
[]
[]
[" "]